bitfinex/quotes_ETHUSD_20250929
["timestamp","ask_amount","ask_price","bid_price","bid_amount"]
[1759165532234,0.001,4145.9,4145.8,5.83368766]
[1759165532755,0.001,4145.9,4145.8,6.26268766]
[1759165533952,0.001,4145.9,4145.8,6.50758766]
[1759165534684,0.001,4145.9,4145.8,9.50758766]
[1759165535349,0.001,4145.9,4145.8,31.88370354]
[1759165535544,0.001,4145.9,4145.8,31.76370354]
[1759165538676,1e-08,4146.8,4146.7,2.41155617]
[1759165538858,1e-08,4146.8,4146.7,6.00787476]
[1759165539359,1e-08,4146.8,4146.7,6.24187476]
[1759165540286,1e-08,4146.8,4146.7,6.70237476]
[1759165540860,1e-08,4146.8,4146.7,7.49437476]
[1759165541899,1e-08,4146.8,4146.7,3.98587476]
[1759165542105,1e-08,4146.8,4146.7,3.19387476]
[1759165542285,1e-08,4146.8,4146.7,6.00687476]
[1759165542680,1e-08,4146.8,4146.7,6.47995679]
[1759165544176,1e-08,4146.8,4146.7,13.00184586]
[1759165545106,0.69060001,4146.8,4146.7,2.41155617]
[1759165545275,0.69060001,4146.8,4146.7,5.22255617]
[1759165545477,0.69060001,4146.8,4146.7,5.34255617]
[1759165547878,1e-08,4146.8,4146.7,5.34255617]
[1759165548076,1e-08,4146.8,4146.7,7.25382627]
[1759165548308,1e-08,4146.8,4146.7,7.94832627]
[1759165549432,1e-08,4146.8,4146.7,7.48782627]
[1759165549634,1e-08,4146.8,4146.7,7.94832627]
[1759165550033,1e-08,4146.8,4146.7,4.44282627]
[1759165550240,1e-08,4146.8,4146.7,5.34055617]
[1759165550629,0.69060001,4146.8,4146.7,5.34055617]
[1759165550825,1e-08,4146.8,4146.7,5.34055617]
[1759165551026,1e-08,4146.8,4146.7,5.22055617]
[1759165551226,1e-08,4146.8,4146.7,2.41155617]
[1759165551533,0.44450001,4146.8,4146.7,5.22055617]
[1759165551738,0.69060001,4146.8,4146.7,5.98277476]
[1759165552321,1e-08,4146.8,4146.7,5.98277476]
[1759165553641,1e-08,4146.8,4146.7,3.17477476]
[1759165553820,1e-08,4146.8,4146.7,5.98177476]
[1759165554320,1e-08,4146.8,4146.7,6.67627476]
[1759165555107,1e-08,4146.8,4146.7,5.98077476]
[1759165556840,1e-08,4146.8,4146.7,3.17477476]
[1759165557151,1e-08,4146.8,4146.7,6.67527476]
[1759165557512,1e-08,4146.8,4146.7,7.15434761]
[1759165559141,1e-08,4146.8,4146.7,3.65384761]
[1759165559640,0.24610001,4146.8,4146.7,6.45984761]
[1759165559843,1e-08,4146.8,4146.7,6.45984761]
[1759165560938,1e-08,4146.8,4146.7,6.57984761]
[1759165561534,1e-08,4146.8,4146.7,3.77384761]
[1759165561733,1e-08,4146.8,4146.7,6.57984761]
[1759165563460,1e-08,4146.8,4146.7,3.77384761]
[1759165563630,1e-08,4146.8,4146.7,6.57984761]
[1759165563817,1e-08,4146.8,4146.7,6.81384761]
[1759165564012,1e-08,4146.8,4146.7,8.06634761]
[1759165564581,1e-08,4146.8,4146.7,28.51168902]
[1759165565174,1e-08,4146.8,4146.7,10.94634761]
[1759165566682,1e-08,4146.8,4146.7,28.51168902]
[1759165569490,1e-08,4147.7,4147.6,3.20303288]
[1759165569661,1e-08,4147.7,4147.6,6.32833617]
[1759165569851,1e-08,4147.7,4147.6,6.56413617]
[1759165570258,1e-08,4147.7,4147.6,7.03413617]
[1759165573093,1e-08,4147.7,4147.6,4.22913617]
[1759165573297,1e-08,4147.7,4147.6,7.03413617]
[1759165573702,1e-08,4147.7,4147.6,10.03413617]
[1759165574794,1e-08,4147.7,4147.6,10.15413617]
[1759165575886,1e-08,4147.7,4147.6,10.39023617]
[1759165578515,1e-08,4147.7,4147.6,6.87943617]
[1759165578675,0.68930001,4147.7,4147.6,2.96743617]
[1759165578874,0.68930001,4147.7,4147.6,5.53533617]
[1759165580101,0.68930001,4147.7,4147.6,2.73133617]
[1759165580290,0.68930001,4147.7,4147.6,5.53533617]
[1759165580603,0.68930001,4147.7,4147.6,5.21503288]
[1759165581100,0.68930001,4147.7,4147.6,2.41103288]
[1759165581313,0.68930001,4147.7,4147.6,5.21503288]
[1759165583886,0.68930001,4147.7,4147.6,2.41103288]
[1759165584092,0.68930001,4147.7,4147.6,5.21503288]
[1759165584614,0.68930001,4147.7,4147.3,2.804]
[1759165584823,0.6893,4147.6,4147.5,2.41107726]
[1759165585378,0.6893,4147.6,4147.3,5.21518253]
[1759165585623,0.4532,4147.6,4147.5,2.41106472]
[1759165585923,1e-08,4147.7,4147.5,2.804]
[1759165586082,1e-08,4147.7,4147.6,2.4351432]
[1759165586278,1e-08,4147.7,4146.6,0.002]
[1759165586595,0.6893,4147.6,4147.1,2.41132344]
[1759165586776,0.6893,4147.5,4147.3,2.4111817]
[1759165586990,0.6893,4147.4,4147.3,2.4111817]
[1759165587826,0.6893,4147.4,4147.0,5.21537734]
[1759165588126,0.71332764,4147.3,4146.6,0.002]
[1759165588508,3.12454291,4147.3,4146.6,0.002]
[1759165588712,0.12,4147.1,4146.6,0.002]
[1759165588932,0.02402764,4147.0,4146.6,0.002]
[1759165589224,0.12,4146.8,4146.6,0.002]
[1759165589718,0.6893,4146.7,4146.6,2.41361312]
[1759165589922,0.6893,4146.7,4146.6,2.41361433]
[1759165590131,0.6893,4146.7,4146.6,0.002]
[1759165590627,0.6893,4146.7,4146.6,2.41361433]
[1759165591940,0.6893,4147.3,4146.6,2.53361433]
[1759165592092,0.6893,4147.3,4147.2,2.41126543]
[1759165592400,0.68930001,4147.7,4147.1,0.14411323]
[1759165592590,0.68930001,4147.7,4147.5,2.41108303]
[1759165592796,0.6893,4147.6,4147.5,2.41108303]
[1759165593258,0.6893,4147.6,4147.1,2.5313162]
[1759165593409,0.6893,4147.5,4147.4,2.41114915]
[1759165595744,1e-08,4147.7,4147.6,2.41103288]
[1759165595899,0.68930001,4147.7,4147.6,2.41103288]
[1759165596218,1e-08,4147.7,4147.6,2.41103288]
[1759165596704,1e-08,4147.7,4147.6,2.9293614]
[1759165596904,1e-08,4147.7,4147.6,3.02525108]
[1759165597106,0.68930001,4147.7,4146.6,0.53827316]
[1759165597297,0.68930001,4147.7,4147.4,2.41114402]
[1759165597298,0.45320001,4147.7,4147.4,2.41114402]
[1759165597501,0.6893,4147.6,4147.4,2.41114402]
[1759165597831,0.6893,4147.5,4147.4,2.41114915]
[1759165598398,0.4532,4147.5,4147.4,2.41114915]
[1759165598829,1e-08,4147.7,4147.6,2.41103288]
[1759165599030,0.23610001,4147.7,4147.6,2.41103288]
[1759165599597,0.69480001,4147.7,4147.6,2.41103288]
[1759165600296,0.69480001,4147.7,4147.3,0.12]
[1759165601000,0.02402764,4147.6,4146.7,2.804]
[1759165601322,0.02402764,4147.6,4146.6,0.002]
[1759165601323,0.8174,4147.5,4146.9,2.41143987]
[1759165601505,0.6974,4147.4,4147.0,2.41137136]
[1759165601706,0.6974,4147.3,4147.0,2.41137136]
[1759165601906,0.6974,4147.2,4147.1,2.41131238]
[1759165602721,0.12,4147.5,4147.1,2.41131238]
[1759165602722,0.3587,4147.5,4147.2,2.41121457]
[1759165603041,0.6974,4147.4,4146.9,2.41143987]
[1759165603211,0.6974,4147.4,4146.8,0.12]
[1759165603414,0.6974,4147.4,4147.1,2.4113169]
[1759165603618,0.6974,4147.4,4147.2,2.41121868]
[1759165603818,0.6974,4147.4,4147.1,2.41128703]
[1759165604007,0.6974,4147.4,4146.8,0.12]
[1759165604313,0.14402764,4147.5,4147.0,2.41136524]
[1759165604514,0.14402764,4147.5,4146.8,0.12]
[1759165604515,0.6974,4147.4,4147.1,2.41128463]
[1759165604709,0.6974,4147.4,4146.8,0.12]
[1759165605125,0.6974,4147.4,4147.2,2.41121498]
[1759165605842,0.6974,4147.4,4147.3,2.41120729]
[1759165606349,0.6974,4147.4,4147.1,2.41330423]
[1759165606518,0.12,4147.5,4147.1,2.41330423]
[1759165606719,0.6974,4147.4,4147.1,0.002]
[1759165607136,5.43527688,4147.3,4147.1,0.002]
[1759165607315,3.0,4147.3,4147.1,0.002]
[1759165607528,0.6974,4147.2,4147.1,0.002]
[1759165608054,0.72142764,4147.2,4147.1,0.002]
[1759165608636,6.13269307,4147.2,4147.1,0.002]
[1759165608935,6.10866543,4147.2,4147.1,0.002]
[1759165609851,3.10866543,4147.2,4147.1,0.002]
[1759165610039,3.13269307,4147.2,4147.1,0.002]
[1759165610346,17.25893889,4147.2,4147.1,0.002]
[1759165610553,17.23491125,4147.2,4147.1,0.002]
[1759165616045,14.82364582,4147.2,4147.1,0.002]
[1759165616246,17.23491125,4147.2,4147.1,0.002]
[1759165617323,8.21526543,4147.2,4147.1,0.002]
[1759165618224,14.74162338,4147.2,4147.1,0.002]
[1759165619121,15.20032338,4147.2,4147.1,0.002]
[1759165619323,15.43902338,4147.2,4147.1,0.002]
[1759165621470,22.75738133,4147.2,4147.1,0.002]
[1759165625090,6.20326543,4147.2,4147.1,0.002]
[1759165625235,22.51768133,4147.2,4147.1,0.002]
[1759165625560,34.75389333,4147.2,4147.1,0.002]
[1759165625858,29.78884333,4147.2,4147.1,0.002]
[1759165626066,29.32961033,4147.2,4147.1,0.002]
[1759165627134,5.41126543,4147.2,4147.1,0.002]
[1759165627345,5.41126543,4147.2,4147.1,0.677]
[1759165627664,5.803,4147.2,4147.1,0.677]
[1759165628031,3.0,4147.2,4147.1,0.677]
[1759165628372,5.803,4147.2,4147.1,0.677]
[1759165629441,5.803,4147.2,4147.1,0.002]
[1759165629749,16.21802338,4147.2,4147.1,0.002]
[1759165629965,3.20355617,4146.7,4146.6,0.002]
[1759165630279,15.55694176,4146.7,4146.6,0.002]
[1759165630465,16.21831412,4146.7,4146.6,0.002]
[1759165630861,15.53291412,4146.7,4146.6,0.002]
[1759165631753,16.21831412,4146.7,4146.6,0.002]
[1759165632245,9.69195617,4146.7,4146.6,0.002]
[1759165633679,9.00655617,4146.7,4146.6,0.002]
[1759165636804,5.41155617,4146.7,4146.6,0.2466]
[1759165636965,5.803,4146.7,4146.6,0.2466]
[1759165637166,5.803,4146.7,4146.6,0.7156]
[1759165637397,8.21455617,4146.7,4146.6,0.7156]
[1759165637598,8.21455617,4146.7,4146.6,0.2466]
[1759165637800,8.21455617,4146.7,4146.6,0.002]
[1759165638578,5.803,4146.7,4146.6,0.002]
[1759165638775,8.21455617,4146.7,4146.6,0.002]
[1759165639197,5.803,4146.7,4146.6,0.002]
[1759165639496,5.803,4146.7,4146.6,0.2466]
[1759165639903,3.0,4146.7,4146.6,0.002]
[1759165640203,5.803,4146.7,4146.6,0.7156]
[1759165640509,5.923,4146.7,4146.6,3.12721433]
[1759165640663,3.12,4146.7,4146.6,3.12721433]
[1759165640869,5.923,4146.7,4146.6,3.12721433]
[1759165641077,5.923,4146.7,4146.6,0.7156]
[1759165641595,5.923,4146.7,4146.6,3.12721433]
[1759165641898,5.923,4146.7,4146.6,0.7156]
[1759165642673,3.12,4146.7,4146.6,3.12721433]
[1759165642878,0.12,4147.1,4147.0,2.41133861]
[1759165643099,2.922,4147.1,4147.0,0.7136]
[1759165643298,5.922,4147.1,4147.0,0.7136]
[1759165644475,3.12,4147.1,4147.0,0.7136]
[1759165644679,5.922,4147.1,4147.0,0.7136]
[1759165645219,2.802,4147.1,4147.0,3.12498172]
[1759165645382,2.802,4147.1,4147.0,3.39321164]
[1759165645590,0.12,4147.4,4147.3,2.41120729]
[1759165645916,2.802,4147.5,4147.2,0.02411265]
[1759165646089,2.802,4147.5,4147.4,2.41114915]
[1759165646285,2.802,4147.5,4147.4,3.12474915]
[1759165647519,2.802,4147.6,4147.5,2.41109101]
[1759165647687,2.802,4147.6,4147.5,3.12469101]
[1759165648617,2.802,4147.6,4147.2,2.41120886]
[1759165648790,2.802,4147.6,4147.3,2.65577832]
[1759165649113,2.802,4147.6,4147.5,2.41109101]
[1759165649409,2.802,4147.6,4147.5,3.12469101]
[1759165649816,1e-08,4147.7,4147.6,2.41103288]
[1759165650021,1e-08,4147.7,4147.6,3.1487432]
[1759165650311,1e-08,4147.7,4147.6,3.2687432]
[1759165650514,1e-08,4147.7,4147.6,3.24463288]
[1759165651298,1e-08,4147.7,4147.6,3.2687432]
[1759165651499,1e-08,4147.7,4147.6,3.86797353]
[1759165652232,1e-08,4147.7,4147.6,3.84386321]
[1759165656528,1e-08,4147.7,4146.8,0.469]
[1759165656694,1e-08,4147.7,4147.4,2.4111413]
[1759165656894,1e-08,4147.7,4147.0,0.2446]
[1759165657100,1e-08,4147.7,4147.3,2.41115629]
[1759165657397,1e-08,4147.7,4147.4,2.41111921]
[1759165657727,1e-08,4147.7,4147.5,2.41103595]
[1759165658027,1e-08,4147.7,4147.4,2.41114915]
[1759165658229,1e-08,4147.7,4147.4,2.65574915]
[1759165658531,1e-08,4147.7,4147.5,2.65569019]
[1759165659522,1e-08,4147.7,4147.5,2.65567711]
[1759165660330,1e-08,4147.7,4147.6,3.1383432]
[1759165660532,1e-08,4147.7,4147.6,3.11423288]
[1759165661339,1e-08,4147.7,4147.6,5.91423288]
[1759165664129,1e-08,4147.7,4147.5,2.41107196]
[1759165664331,1e-08,4147.7,4147.6,2.41103288]
[1759165664822,0.44720001,4147.7,4146.8,0.4651]
[1759165665022,0.69590001,4147.7,4147.2,2.41125472]
[1759165665226,0.2487,4147.6,4147.2,5.21025472]
[1759165665427,0.2487,4147.6,4147.3,2.41117368]
[1759165666217,0.6959,4147.5,4146.9,2.41139436]
[1759165666645,0.6959,4147.5,4147.0,0.12]
[1759165666854,0.6959,4147.5,4147.1,2.41132357]
[1759165667060,0.14402765,4147.7,4147.1,2.41132357]
[1759165667260,0.14402765,4147.7,4147.0,0.12]
[1759165667261,2.41116051,4147.4,4147.0,0.12]
[1759165667427,0.6959,4147.3,4146.7,5.33055617]
[1759165667632,0.12,4147.4,4146.9,2.41140923]
[1759165667868,0.12,4147.4,4146.7,2.5315019]
[1759165668064,0.12,4147.4,4146.7,0.12]
[1759165668065,0.6959,4147.3,4146.7,0.12]
[1759165668356,3.1311532,4147.3,4146.6,0.002]
[1759165668540,0.3687,4147.2,4146.6,0.002]
[1759165668745,0.02402764,4147.1,4146.6,0.002]
[1759165669121,0.6959,4147.0,4146.6,0.002]
[1759165669324,0.14402764,4147.2,4146.6,0.002]
[1759165669518,10.84090384,4149.6,4146.6,0.002]
[1759165669519,0.6959,4146.9,4146.6,0.002]
[1759165669756,0.14402764,4146.8,4146.6,0.002]
[1759165669924,0.83992764,4146.8,4146.6,0.002]
[1759165670147,0.6959,4146.7,4146.6,0.002]
[1759165670666,0.14402764,4146.8,4146.6,0.002]
[1759165670826,0.24870001,4147.7,4146.6,0.7052]
[1759165671025,0.24870001,4147.7,4146.7,0.2381]
[1759165671026,3.0,4147.1,4146.7,0.2381]
[1759165671227,3.0,4147.1,4146.8,0.2381]
[1759165671446,3.0,4147.1,4146.8,2.64954074]
[1759165671729,3.0,4147.2,4146.9,0.2381]
[1759165672956,3.0,4147.2,4147.0,0.2381]
[1759165673157,3.0,4147.2,4146.6,0.122]
[1759165673358,3.0,4147.2,4146.8,2.41145118]
[1759165673524,0.12,4147.3,4147.2,2.41126543]
[1759165673724,0.12,4147.3,4147.2,2.64936543]
[1759165673962,1e-08,4147.7,4147.5,2.41103884]
[1759165674129,1e-08,4147.7,4147.3,3.1385179]
[1759165674328,1e-08,4147.7,4147.2,0.38493654]
[1759165674329,1e-08,4147.7,4147.4,2.41114791]
[1759165674642,3.00000001,4147.7,4147.2,2.53120947]
[1759165674954,3.00000001,4147.7,4147.3,2.64930729]
[1759165675138,3.00000001,4147.7,4147.2,0.12]
[1759165675340,3.00000001,4147.7,4147.2,0.8232]
[1759165675655,3.00000001,4147.7,4147.4,2.41109976]
[1759165676353,3.00000001,4147.7,4147.4,0.2381]
[1759165676657,3.00000001,4147.7,4147.5,2.41108971]
[1759165676953,3.00000001,4147.7,4147.2,2.53126374]
[1759165677186,1e-08,4147.7,4147.4,2.41109634]
[1759165677362,1e-08,4147.7,4147.3,2.41119108]
[1759165677660,1e-08,4147.7,4147.4,2.41114915]
[1759165677833,1e-08,4147.7,4147.5,2.41108559]
[1759165678038,1e-08,4147.7,4147.3,0.2381]
[1759165678238,1e-08,4147.7,4147.4,0.2381]
[1759165678437,1e-08,4147.7,4147.6,2.41103288]
[1759165678641,1e-08,4147.7,4147.5,2.41107125]
[1759165678962,1e-08,4147.7,4147.2,2.53125794]
[1759165679267,1e-08,4147.7,4147.6,2.41103288]
[1759165679625,1e-08,4147.7,4147.6,2.6732432]
[1759165680061,1e-08,4147.7,4147.6,3.1383432]
[1759165680859,1e-08,4147.7,4147.5,2.41107037]
[1759165681091,1e-08,4147.7,4147.6,2.41103288]
[1759165681266,1e-08,4147.7,4147.5,5.44717626]
[1759165681465,1e-08,4147.7,4147.5,5.20906937]
[1759165681992,1e-08,4147.7,4147.4,0.12]
[1759165682478,1e-08,4147.7,4147.4,2.53111004]
[1759165682672,1e-08,4147.7,4147.5,2.41109068]
[1759165682887,1e-08,4147.7,4147.5,2.41109101]
[1759165683093,1e-08,4147.7,4147.5,2.41103938]
[1759165683258,1e-08,4147.7,4147.4,0.12]
[1759165683458,1e-08,4147.7,4147.4,0.3581]
[1759165683670,1e-08,4147.7,4147.5,2.41107548]
[1759165683872,1e-08,4147.7,4147.4,2.76924692]
[1759165684071,1e-08,4147.7,4147.6,2.41103288]
[1759165684588,1e-08,4147.7,4147.5,2.41107659]
[1759165684758,1e-08,4147.7,4147.5,2.41107374]
[1759165684954,1e-08,4147.7,4147.5,2.41109101]
[1759165685160,1e-08,4147.7,4147.6,2.41103288]
[1759165685571,1e-08,4147.7,4147.6,3.11423288]
[1759165686182,1e-08,4147.7,4147.6,3.23423288]
[1759165686380,1e-08,4147.7,4147.6,4.07856942]
[1759165688092,1e-08,4147.7,4147.6,0.12]
[1759165688392,1e-08,4147.7,4146.4,3.0]
[1759165688393,0.69590001,4147.7,4146.6,2.41356315]
[1759165688595,0.12,4147.5,4146.8,2.53145375]
[1759165688964,1e-08,4147.7,4146.9,0.02411439]
[1759165689165,1e-08,4147.7,4147.0,3.07911144]
[1759165689469,1e-08,4147.7,4147.1,0.02411323]
[1759165689778,1e-08,4147.7,4147.6,2.41103288]
[1759165690160,1e-08,4147.7,4147.6,3.10363288]
[1759165690591,1e-08,4147.7,4147.6,3.1277432]
[1759165690777,1e-08,4147.7,4147.6,3.96132821]
[1759165691190,1e-08,4147.7,4147.6,3.93721789]
[1759165692684,1e-08,4147.7,4147.6,3.96132821]
[1759165693096,1e-08,4147.7,4147.6,6.75832821]
[1759165693301,1e-08,4147.7,4147.6,6.73421789]
[1759165695382,1e-08,4147.7,4147.6,7.52621789]
[1759165696604,1e-08,4147.7,4147.6,10.52621789]
[1759165697588,1e-08,4147.7,4147.6,28.09152553]
[1759165698993,1e-08,4147.7,4147.6,28.21152553]
[1759165699481,0.2478,4150.0,4147.7,0.792]
[1759165699680,0.2478,4150.0,4149.8,2.4097144]
[1759165699884,0.02702764,4151.0,4149.8,2.4097144]
[1759165699885,0.2478,4150.3,4150.2,2.40952243]
[1759165700105,0.6908,4150.3,4150.2,2.40952243]
[1759165700512,0.2478,4150.8,4150.7,2.40922627]
[1759165700716,0.6908,4150.8,4150.7,2.40922627]
[1759165701082,0.6908,4150.8,4150.5,2.796]
[1759165701277,0.02402764,4151.5,4150.6,2.40924438]
[1759165701278,0.6908,4150.7,4150.6,2.40924438]
[1759165702111,0.6908,4150.7,4150.5,2.796]
[1759165702414,0.6908,4150.6,4150.5,2.796]
[1759165703009,0.6908,4150.6,4150.5,5.20534827]
[1759165703387,0.2478,4151.0,4149.7,0.2286]
[1759165703697,0.6908,4150.9,4150.4,2.40939359]
[1759165704004,0.6908,4150.8,4150.3,2.40941853]
[1759165704204,0.6908,4150.7,4150.1,2.40952961]
[1759165704514,0.6908,4150.6,4150.0,2.40958776]
[1759165704713,0.6908,4150.5,4150.0,5.20458776]
[1759165704916,0.6908,4150.5,4150.0,2.795]
[1759165705117,0.02402764,4151.4,4150.4,2.40938008]
[1759165705318,0.6908,4150.7,4150.3,2.40944558]
[1759165705527,0.6908,4150.6,4150.3,2.40944558]
[1759165705713,0.02502764,4150.9,4150.3,2.40944558]
[1759165705928,0.6908,4150.5,4150.1,2.795]
[1759165706128,0.6908,4150.4,4150.3,2.40944505]
[1759165706314,0.443,4150.4,4150.3,2.40944505]
[1759165706515,0.443,4150.4,4150.2,2.40951255]
[1759165706715,0.6908,4150.4,4150.1,5.20456218]
[1759165706916,0.6908,4150.3,4150.2,2.40948593]
[1759165707410,0.6908,4150.3,4149.8,0.48981869]
[1759165707619,0.6908,4150.2,4149.9,5.20469253]
[1759165707799,0.6908,4150.2,4149.9,5.20468733]
[1759165708004,0.6908,4150.2,4150.0,2.40963855]
[1759165708227,0.6908,4150.2,4149.9,2.795]
[1759165708430,0.6908,4150.2,4141.4,10.3817092]
[1759165708431,0.6908,4150.1,4149.6,0.47444119]
[1759165708634,0.02402764,4150.0,4149.6,0.47444119]
[1759165708829,0.02402764,4150.0,4149.5,2.794]
[1759165708830,0.443,4149.9,4149.5,2.794]
[1759165709038,0.6908,4149.8,4149.2,2.41006084]
[1759165709234,0.6908,4149.8,4149.4,2.794]
[1759165709538,0.6908,4149.7,4149.5,0.12]
[1759165709906,0.6908,4149.6,4149.5,0.12]
[1759165711919,0.6908,4149.6,4149.3,2.410038]
[1759165712543,0.6908,4149.5,4149.2,0.12]
[1759165712945,0.443,4149.8,4149.3,2.41000228]
[1759165713146,0.443,4149.8,4149.2,0.12]
[1759165713147,0.2478,4149.7,4149.2,0.12]
[1759165713326,0.2478,4149.7,4149.4,2.40995055]
[1759165713727,0.6908,4149.7,4149.4,2.40995055]
[1759165714146,0.02402764,4149.8,4149.2,0.12]
[1759165714347,0.02402764,4149.8,4149.6,2.4098182]
[1759165714533,0.12,4149.9,4149.5,0.02409928]
[1759165714737,0.12,4149.9,4149.6,2.40987083]
[1759165715323,0.12,4149.9,4149.7,2.40980492]
[1759165715525,0.12,4149.9,4149.5,2.40992751]
[1759165715526,0.12,4149.9,4149.5,2.40990813]
[1759165715748,0.14402764,4149.9,4149.4,2.40994943]
[1759165715950,0.14402764,4149.9,4149.5,2.40992414]
[1759165716421,0.14402764,4149.9,4149.6,2.40986669]
[1759165716621,0.14402764,4149.9,4149.5,2.40990896]
[1759165717022,0.6908,4149.8,4149.3,5.20400498]
[1759165717217,0.71482764,4149.7,4149.2,0.12]
[1759165717422,3.46702764,4149.6,4148.7,2.41039193]
[1759165717655,3.24480557,4149.5,4148.8,2.53033508]
[1759165717956,3.10083025,4149.4,4148.8,0.12]
[1759165718249,0.02402764,4149.3,4148.8,0.12]
[1759165718436,0.6908,4149.2,4148.8,0.12]
[1759165718646,2.87720881,4149.1,4148.6,0.002]
[1759165718962,0.46702764,4149.1,4148.6,0.002]
[1759165719276,0.6723,4149.0,4148.6,0.002]
[1759165719777,0.69632764,4148.9,4148.6,0.002]
[1759165720381,0.6723,4148.8,4148.6,0.002]
[1759165720533,0.02402764,4148.7,4148.6,0.002]
[1759165720733,2.43442125,4148.7,4148.6,0.002]
[1759165720972,0.69632764,4148.7,4148.6,0.002]
[1759165722440,0.12,4148.8,4148.6,0.002]
[1759165722647,8.22713955,4149.2,4148.6,0.6915]
[1759165722873,0.12,4149.1,4148.6,3.10191544]
[1759165723045,0.12,4149.1,4148.6,0.4423]
[1759165723245,3.0,4149.2,4148.7,2.65959361]
[1759165723446,0.02402764,4149.1,4148.7,2.65959361]
[1759165723641,0.02402764,4149.1,4148.7,2.97363116]
[1759165723875,3.02402764,4149.2,4148.8,0.2492]
[1759165724079,6.10643703,4149.2,4148.6,0.122]
[1759165724289,6.08240939,4149.2,4148.6,0.122]
[1759165724572,0.02402764,4149.1,4148.6,2.53243169]
[1759165724784,0.02402764,4149.1,4148.6,0.3712]
[1759165725076,2.43419267,4149.1,4148.6,0.122]
[1759165725377,3.08253886,4149.0,4148.6,0.002]
[1759165725670,2.41033551,4148.8,4148.6,0.002]
[1759165725842,0.02402764,4148.7,4148.6,0.002]
[1759165726256,3.10672125,4148.7,4148.6,0.002]
[1759165727092,6.89872125,4148.7,4148.6,0.002]
[1759165727389,6.87469361,4148.7,4148.6,0.002]
[1759165727688,6.9987548,4148.7,4148.6,0.002]
[1759165728189,6.87469361,4148.7,4148.6,0.002]
[1759165730905,8.32569361,4148.7,4148.6,0.002]
[1759165731102,6.87469361,4148.7,4148.6,0.002]
[1759165732009,5.41039361,4148.7,4148.6,0.002]
[1759165732211,5.20339361,4148.7,4148.6,0.2512]
[1759165732382,5.20339361,4148.7,4148.6,0.002]
[1759165734931,0.62277032,4149.9,4148.6,0.6915]
[1759165735080,0.02402764,4149.8,4148.7,0.71360393]
[1759165735280,0.02402764,4149.8,4148.8,0.6895]
[1759165735499,0.001,4150.0,4148.9,2.41027742]
[1759165735705,0.001,4150.0,4149.5,2.40987983]
[1759165735903,3.02502764,4150.0,4149.5,2.40987983]
[1759165736117,3.02502764,4150.0,4149.6,0.6895]
[1759165736325,3.02502764,4150.0,4149.7,0.6895]
[1759165736522,3.02502764,4150.0,4149.8,0.6895]
[1759165736808,0.02502764,4150.0,4149.9,0.6895]
[1759165737006,0.001,4150.0,4149.9,0.6895]
[1759165740401,0.001,4150.0,4149.9,3.09919661]
[1759165740612,0.001,4150.0,4149.9,3.21919661]
[1759165741174,0.001,4150.0,4149.9,0.3692]
[1759165741442,0.001,4150.0,4149.9,3.21919661]
[1759165742043,0.001,4150.0,4149.9,0.8095]
[1759165742345,0.001,4150.0,4149.9,3.21919661]
[1759165742646,0.001,4150.0,4149.9,3.78209622]
[1759165743947,0.001,4150.0,4149.9,0.68289961]
[1759165744161,0.001,4150.0,4149.0,0.30997774]
[1759165744162,0.2457,4150.0,4149.1,2.41015339]
[1759165744366,2.40979796,4149.8,4149.0,3.0996669]
[1759165744547,0.02402764,4149.7,4149.0,3.0996669]
[1759165744892,0.02402764,4149.7,4149.1,2.41012562]
[1759165745031,2.43373934,4149.9,4149.1,2.41012562]
[1759165745349,0.02402764,4149.9,4149.2,0.2492]
[1759165745529,0.02402764,4149.9,4149.2,2.65927018]
[1759165745871,0.02402764,4149.9,4149.2,0.2492]
[1759165746173,0.001,4150.0,4149.3,0.2492]
[1759165746174,0.02502764,4150.0,4149.3,0.2492]
[1759165746370,0.02502764,4150.0,4149.4,2.409944]
[1759165746875,2.43466974,4150.0,4149.3,2.6592321]
[1759165747057,0.02502764,4150.0,4149.3,0.2492]
[1759165747376,0.001,4150.0,4149.4,2.43408684]
[1759165747668,0.02502764,4150.0,4149.5,2.6591289]
[1759165747874,0.02502764,4150.0,4149.5,0.2492]
[1759165748057,0.02502764,4150.0,4149.6,0.2492]
[1759165748545,0.02502764,4150.0,4149.3,2.41002886]
[1759165748860,2.43467788,4150.0,4149.4,0.2492]
[1759165749050,0.02502764,4150.0,4149.4,2.65917386]
[1759165749363,0.02502764,4150.0,4149.6,2.40983193]
[1759165749658,0.001,4150.0,4149.6,2.40983193]
[1759165749841,0.001,4150.0,4149.7,0.2399]
[1759165750444,0.02502764,4150.0,4149.7,0.2399]
[1759165750634,0.02502764,4150.0,4149.3,2.64990363]
[1759165750836,3.10858206,4150.0,4149.3,2.64990363]
[1759165751177,3.10856819,4150.0,4149.4,2.40997278]
[1759165751371,0.02502764,4150.0,4149.3,0.2399]
[1759165751681,0.001,4150.0,4149.3,0.2399]
[1759165751858,0.02402764,4149.9,4149.3,2.64989951]
[1759165752059,2.43374278,4149.9,4149.3,0.2399]
[1759165752490,2.40976064,4149.8,4149.3,0.2399]
[1759165752674,0.02402764,4149.7,4149.3,0.2399]
[1759165752988,0.02402764,4149.7,4149.4,2.40998646]
[1759165753296,0.02502764,4150.0,4149.4,0.6809]
[1759165753503,0.02502764,4150.0,4149.4,3.09086974]
[1759165753996,0.02502764,4150.0,4149.4,0.2399]
[1759165754201,0.12,4149.8,4149.4,0.2399]
[1759165754409,0.02402764,4149.7,4149.5,3.09081375]
[1759165754562,0.02402764,4149.7,4149.5,2.85091375]
[1759165754767,0.02402764,4149.7,4149.5,0.2399]
[1759165756398,0.02402764,4149.7,4149.6,0.6809]
[1759165756712,0.02402764,4149.7,4149.6,2.64977083]
[1759165756881,0.12,4149.8,4149.7,2.40981275]
[1759165757065,0.001,4150.0,4149.7,3.09071275]